fUST/lending_fUST_20250802
["ID","MTS","AMOUNT","RATE_DAILY","PERIOD"]
[376641921,1754068245039,-460.0,0.00022191,10]
[376641922,1754068245049,-43.65445448,0.00022191,10]
[376641923,1754068245063,-416.34554552,0.00022191,10]
[376641924,1754068245072,-100.33657649,0.00022191,10]
[376641925,1754068245085,-359.66342351,0.00022191,10]
[376641926,1754068245094,-460.0,0.00022191,10]
[376641927,1754068245104,-460.0,0.00022191,10]
[376641928,1754068245114,-460.0,0.00022191,10]
[376641929,1754068245123,-360.16825829,0.00022191,10]
[376641936,1754068247982,-460.0,0.00021917,10]
[376641937,1754068247992,-920.0,0.00021917,10]
[376641938,1754068248003,-223.25,0.00021917,10]
[376641939,1754068248013,-99.83174171,0.00022191,10]
[376641940,1754068248023,-460.0,0.00022191,10]
[376641941,1754068248033,-460.0,0.00022191,10]
[376641942,1754068248043,-460.0,0.00022191,10]
[376641943,1754068248053,-460.0,0.00022191,10]
[376641944,1754068248063,-484.95060573,0.00022191,10]
[376641945,1754068248073,-460.0,0.00022191,10]
[376641946,1754068248083,-27.32533932,0.00022191,10]
[376641947,1754068248095,-432.67466068,0.00022191,10]
[376641948,1754068248104,-460.0,0.00022191,10]
[376641949,1754068248114,-460.0,0.00022191,10]
[376641950,1754068248124,-460.0,0.00022191,10]
[376641951,1754068248134,-460.0,0.00022191,10]
[376641952,1754068248143,-460.0,0.00022191,10]
[376641953,1754068248152,-460.0,0.00022191,10]
[376641954,1754068248162,-460.0,0.00022191,10]
[376641955,1754068248171,-460.0,0.00022191,10]
[376641956,1754068248181,-104.26318917,0.00022191,10]
[376641957,1754068342857,164.147997,0.00013699,2]
[376641959,1754068364578,665.2,0.00027177,30]
[376641960,1754068378063,152.0,0.00024,120]
[376641961,1754068379477,152.0,0.000255,120]
[376641962,1754068751506,151.0,0.00013699,2]
[376641968,1754069322973,503.76512,0.00027179,120]
[376642014,1754069432319,-723.423589,0.0002,2]
[376642016,1754069432328,-181.539139,0.00020816,2]
[376642018,1754069432337,-199.8323709,0.00020943,2]
[376642020,1754069432346,-463.00975606,0.0002146,2]
[376642022,1754069432355,-732.30985317,0.00021717,2]
[376642024,1754069432364,-300.0,0.00021806,2]
[376642026,1754069432373,-1895.47,0.00021807,3]
[376642028,1754069432383,-947.73,0.00021807,3]
[376642030,1754069432391,-473.87,0.00021807,3]
[376642032,1754069432400,-236.93,0.00021807,3]
[376642034,1754069432410,-710.82,0.00021807,3]
[376642036,1754069432419,-460.0,0.00021814,2]
[376642038,1754069432428,-561.33,0.00021814,2]
[376642040,1754069432437,-460.0,0.00021815,2]
[376642042,1754069432446,-7885.76,0.00021815,2]
[376642044,1754069432458,-1256.44,0.00021815,2]
[376642047,1754069432467,-483.69,0.00021815,2]
[376642049,1754069432476,-460.0,0.00021815,2]
[376642051,1754069432486,-460.0,0.00021815,2]
[376642052,1754069432495,-5790.7,0.00021815,2]
[376642054,1754069432504,-460.0,0.00021815,2]
[376642056,1754069432514,-460.0,0.00021815,2]
[376642057,1754069432523,-986.92,0.00021815,2]
[376642058,1754069432532,-976.82,0.00021815,2]
[376642060,1754069432542,-474.25,0.00021815,2]
[376642062,1754069432551,-333.76317069,0.00021815,2]
[376642063,1754069432564,-467.09929999,0.00021815,2]
[376642071,1754069438413,-460.0,0.00021814,2]
[376642072,1754069438422,-212.81752932,0.00021815,2]
[376642073,1754069438431,-3993.69,0.00021815,2]
[376642074,1754069438441,-1218.29,0.00021815,2]
[376642075,1754069438450,-562.37,0.00021815,2]
[376642076,1754069438463,-3161.08,0.00021815,2]
[376642077,1754069438472,-1133.95,0.00021815,2]
[376642078,1754069438482,-460.0,0.00021815,2]
[376642079,1754069438491,-460.0,0.00021815,2]
[376642080,1754069438648,-2061.59,0.00021815,2]
[376642081,1754069438696,-500.0,0.00021816,2]
[376642082,1754069438708,-500.0,0.00021816,2]
[376642083,1754069438719,-381.14558868,0.00021816,2]
[376642084,1754069438728,-500.0,0.00021816,2]
[376642085,1754069438737,-500.0,0.00021816,2]
[376642086,1754069438745,-600.0,0.00021816,2]
[376642087,1754069438754,-500.0,0.00021816,2]
[376642088,1754069438763,-500.0,0.00021816,2]
[376642089,1754069438773,-500.0,0.00021816,2]
[376642090,1754069438782,-500.0,0.00021816,2]
[376642091,1754069438791,-500.0,0.00021816,2]
[376642092,1754069438800,-500.0,0.00021816,2]
[376642093,1754069438809,-500.0,0.00021816,2]
[376642094,1754069438819,-500.0,0.00021816,2]
[376642095,1754069438829,-500.0,0.00021816,2]
[376642096,1754069438839,-500.0,0.00021816,2]
[376642097,1754069438848,-500.0,0.00021816,2]
[376642098,1754069438858,-500.0,0.00021816,2]
[376642099,1754069438867,-500.0,0.00021816,2]
[376642100,1754069438876,-633.5,0.00021816,2]
[376642101,1754069438885,-500.0,0.00021816,2]
[376642102,1754069438895,-500.0,0.00021816,2]
[376642103,1754069438904,-500.0,0.00021816,2]
[376642104,1754069438913,-500.0,0.00021816,2]
[376642105,1754069438922,-600.0,0.00021816,2]
[376642106,1754069438931,-500.0,0.00021816,2]
[376642107,1754069438941,-500.0,0.00021816,2]
[376642108,1754069438951,-500.0,0.00021816,2]
[376642109,1754069438962,-500.0,0.00021816,2]
[376642110,1754069438972,-340.44842469,0.00021816,2]
[376642111,1754069438982,-280.0,0.00021816,2]
[376642112,1754069438992,-227.43050314,0.00021816,2]
[376642113,1754069439001,-460.0,0.00021816,2]
[376642114,1754069439010,-460.0,0.00021816,2]
[376642115,1754069439019,-460.0,0.00021816,2]
[376642116,1754069439029,-460.0,0.00021816,2]
[376642117,1754069439038,-223.68815417,0.00021816,2]
[376642118,1754069439078,-236.31184583,0.00021816,2]
[376642119,1754069439088,-460.0,0.00021816,2]
[376642120,1754069439098,-460.0,0.00021816,2]
[376642121,1754069439108,-179.20285751,0.00021816,2]
[376642216,1754069440373,-460.0,0.00021814,2]
[376642217,1754069440383,-460.0,0.00021815,2]
[376642218,1754069440392,-280.79714249,0.00021816,2]
[376642219,1754069440402,-460.0,0.00021816,2]
[376642220,1754069440411,-460.0,0.00021816,2]
[376642221,1754069440420,-460.0,0.00021816,2]
[376642222,1754069440430,-460.0,0.00021816,2]
[376642223,1754069440440,-460.0,0.00021816,2]
[376642224,1754069440449,-460.0,0.00021816,2]
[376642225,1754069440460,-484.4,0.00021816,2]
[376642226,1754069440469,-460.0,0.00021816,2]
[376642227,1754069440479,-460.0,0.00021816,2]
[376642228,1754069440497,-460.0,0.00021816,2]
[376642229,1754069440509,-460.0,0.00021816,2]
[376642230,1754069440519,-460.0,0.00021816,2]
[376642231,1754069440530,-460.0,0.00021816,2]
[376642232,1754069440540,-460.0,0.00021816,2]
[376642233,1754069440551,-882.76,0.00021816,2]
[376642234,1754069440561,-161.69173639,0.00021816,2]
[376642235,1754069440571,-1038.26,0.00021816,2]
[376642236,1754069440581,-460.0,0.00021816,2]
[376642237,1754069440591,-460.0,0.00021816,2]
[376642238,1754069440601,-460.0,0.00021816,2]
[376642239,1754069440611,-748.01,0.00021816,2]
[376642240,1754069440621,-460.0,0.00021816,2]
[376642241,1754069440632,-460.0,0.00021816,2]
[376642242,1754069440644,-460.0,0.00021816,2]
[376642243,1754069440654,-565.8,0.00021816,2]
[376642244,1754069440664,-460.0,0.00021816,2]
[376642245,1754069440675,-1629.59,0.00021816,2]
[376642247,1754069440684,-460.0,0.00021816,2]
[376642249,1754069440694,-829.9,0.00021816,2]
[376642251,1754069440703,-1243.19,0.00021816,2]
[376642253,1754069440716,-132.97515667,0.00021816,2]
[376642263,1754069440811,-327.02484333,0.00021816,2]
[376642265,1754069440822,-460.0,0.00021816,2]
[376642267,1754069440834,-460.0,0.00021816,2]
[376642269,1754069440844,-213.869245,0.00021816,10]
[376642271,1754069440854,-460.0,0.00021816,2]
[376642273,1754069440864,-460.0,0.00021816,2]
[376642275,1754069440873,-575.44,0.00021816,2]
[376642277,1754069440883,-460.0,0.00021816,2]
[376642279,1754069440892,-524.08,0.00021816,2]
[376642281,1754069440902,-620.6,0.00021816,2]
[376642283,1754069440911,-460.0,0.00021816,2]
[376642285,1754069440921,-460.0,0.00021816,2]
[376642287,1754069440930,-343.49694121,0.00021816,2]
[376642290,1754069440945,-934.37305879,0.00021816,2]
[376642292,1754069440954,-600.2,0.00021816,2]
[376642294,1754069440969,-460.0,0.00021816,2]
[376642296,1754069440979,-662.37,0.00021816,2]
[376642298,1754069440988,-1085.61,0.00021816,2]
[376642300,1754069440998,-3361.66,0.00021816,2]
[376642302,1754069441007,-460.0,0.00021816,2]
[376642304,1754069441017,-460.0,0.00021816,2]
[376642306,1754069441027,-1453.73,0.00021816,2]
[376642308,1754069441036,-460.0,0.00021816,2]
[376642310,1754069441046,-579.87990335,0.00021816,2]
[376642312,1754069441056,-627.63,0.00021816,2]
[376642314,1754069441066,-1282.4,0.00021816,2]
[376642316,1754069441075,-479.84,0.00021816,2]
[376642318,1754069441085,-684.14,0.00021816,2]
[376642320,1754069441094,-2414.29,0.00021816,2]
[376642322,1754069441103,-460.0,0.00021816,2]
[376642324,1754069441113,-460.0,0.00021816,2]
[376642326,1754069441122,-460.0,0.00021816,2]
[376642328,1754069441131,-460.0,0.00021816,2]
[376642331,1754069441141,-460.0,0.00021816,2]
[376642333,1754069441150,-1524.19,0.00021816,2]
[376642335,1754069441160,-460.0,0.00021816,2]
[376642337,1754069441170,-460.0,0.00021816,2]
[376642339,1754069441179,-888.76,0.00021816,2]
[376642341,1754069441188,-460.0,0.00021816,2]
[376642343,1754069441197,-460.0,0.00021816,2]
[376642345,1754069441208,-582.9,0.00021816,2]
[376642347,1754069441218,-717.55345147,0.00021816,2]
[376642349,1754069441232,-1630.32654853,0.00021816,2]
[376642351,1754069441241,-460.0,0.00021816,2]
[376642353,1754069441251,-460.0,0.00021816,2]
[376642355,1754069441260,-460.0,0.00021816,2]
[376642357,1754069441270,-611.3,0.00021816,2]
[376642359,1754069441280,-520.03407232,0.00021816,2]
[376642361,1754069441289,-461.01767646,0.00021816,2]
[376642363,1754069441298,-460.0,0.00021816,2]
[376642365,1754069441308,-1083.92,0.00021816,2]
[376642367,1754069441317,-460.0,0.00021816,2]
[376642369,1754069441326,-460.0,0.00021816,2]
[376642371,1754069441335,-460.0,0.00021816,2]
[376642373,1754069441345,-460.0,0.00021816,2]
[376642375,1754069441354,-460.0,0.00021816,2]
[376642377,1754069441363,-1187.48,0.00021816,2]
[376642379,1754069441373,-460.0,0.00021816,2]
[376642382,1754069441383,-460.0,0.00021816,2]
[376642384,1754069441394,-460.0,0.00021816,2]
[376642386,1754069441403,-460.0,0.00021816,2]
[376642388,1754069441413,-460.0,0.00021816,2]
[376642390,1754069441422,-528.38,0.00021816,2]
[376642392,1754069441431,-923.87,0.00021816,2]
[376642394,1754069441441,-460.0,0.00021816,2]
[376642396,1754069441450,-1074.14,0.00021816,2]
[376642398,1754069441464,-460.0,0.00021816,2]
[376642400,1754069441473,-460.0,0.00021816,2]
[376642402,1754069441482,-984.64,0.00021816,2]
[376642404,1754069441491,-460.0,0.00021816,2]
[376642406,1754069441501,-10794.6209435,0.00021817,2]
[376642408,1754069441515,-7119.85880845,0.00021817,2]
[376642411,1754069441528,-7821.52691827,0.00021817,2]
[376642608,1754069443405,-460.0,0.00021816,2]
[376642610,1754069443415,-254.16304081,0.00021817,2]
[376642612,1754069443426,-800.0,0.00021817,2]
[376642671,1754069443995,-47785.60744325,0.00021817,2]
[376642673,1754069444005,-5050.75262967,0.00021817,2]
[376642675,1754069444015,-500.0,0.00021873,2]
[376642677,1754069444025,-337.15305541,0.00021873,2]
[376642679,1754069444035,-305.10559508,0.000219,6]
[376642682,1754069444045,-883.33,0.00021912,2]
[376642684,1754069444054,-460.0,0.00021912,2]
[376642686,1754069444063,-460.0,0.00021912,2]
[376642688,1754069444073,-460.0,0.00021912,2]
[376642690,1754069444083,-460.0,0.00021912,2]
[376642692,1754069444092,-460.0,0.00021912,2]
[376642694,1754069444102,-460.0,0.00021912,2]
[376642696,1754069444112,-460.0,0.00021912,2]
[376642698,1754069444122,-460.0,0.00021912,2]
[376642700,1754069444132,-460.0,0.00021912,2]
[376642702,1754069444143,-460.0,0.00021912,2]
[376642704,1754069444162,-1123.48,0.00021912,2]
[376642706,1754069444183,-460.0,0.00021912,2]
[376642708,1754069444203,-460.0,0.00021912,2]
[376642710,1754069444219,-689.92,0.00021912,2]
[376642712,1754069444228,-460.0,0.00021912,2]
[376642714,1754069444237,-460.0,0.00021912,2]
[376642716,1754069444246,-460.0,0.00021912,2]
[376642718,1754069444255,-576.55,0.00021912,2]
[376642720,1754069444266,-460.0,0.00021912,2]
[376642722,1754069444275,-460.0,0.00021912,2]
[376642724,1754069444284,-1696.22,0.00021912,2]
[376642726,1754069444293,-1250.77,0.00021912,2]
[376642728,1754069444302,-460.0,0.00021912,2]
[376642730,1754069444311,-1005.51,0.00021912,2]
[376642732,1754069444320,-460.0,0.00021912,2]
[376642734,1754069444329,-460.0,0.00021912,2]
[376642736,1754069444338,-461.56845937,0.00021912,2]
[376642738,1754069444347,-590.71,0.00021912,2]
[376642740,1754069444357,-1647.05,0.00021912,2]
[376642742,1754069444366,-794.83,0.00021912,2]
[376642744,1754069444375,-460.0,0.00021912,2]
[376642746,1754069444386,-851.59,0.00021912,2]
[376642748,1754069444395,-460.0,0.00021912,2]
[376642750,1754069444406,-460.0,0.00021912,2]
[376642752,1754069444415,-460.0,0.00021912,2]
[376642754,1754069444425,-460.0,0.00021912,2]
[376642756,1754069444435,-848.84,0.00021914,2]
[376642758,1754069444445,-460.0,0.00021914,2]
[376642760,1754069444456,-460.0,0.00021914,2]
[376642762,1754069444472,-2449.66,0.00021914,2]
[376642764,1754069444482,-480.66,0.00021914,2]
[376642766,1754069444491,-1857.88,0.00021914,2]
[376642768,1754069444501,-460.0,0.00021914,2]
[376642770,1754069444511,-460.0,0.00021915,2]
[376642772,1754069444519,-460.0,0.00021915,2]
[376642774,1754069444528,-460.0,0.00021915,2]
[376642776,1754069444538,-460.0,0.00021915,2]
[376642778,1754069444547,-460.0,0.00021915,2]
[376642780,1754069444556,-460.0,0.00021915,2]
[376642782,1754069444565,-155.0,0.00021915,2]
[376642784,1754069444575,-460.0,0.00021915,2]
[376642786,1754069444584,-460.0,0.00021915,2]
[376642788,1754069444594,-460.0,0.00021915,2]
[376642790,1754069444603,-460.0,0.00021915,2]
[376642792,1754069444612,-460.0,0.00021915,2]
[376642794,1754069444621,-460.0,0.00021915,2]
[376642796,1754069444632,-460.0,0.00021915,2]
[376642798,1754069444643,-460.0,0.00021915,2]
[376642800,1754069444653,-460.0,0.00021915,2]
[376642802,1754069444662,-460.0,0.00021915,2]
[376642804,1754069444674,-463.49769264,0.00021915,2]
[376642806,1754069444683,-899.72,0.00021915,2]
[376642808,1754069444693,-460.0,0.00021915,2]
[376642810,1754069444703,-460.0,0.00021915,2]
[376642812,1754069444719,-460.0,0.00021915,2]
[376642814,1754069444729,-460.0,0.00021915,2]
[376642816,1754069444739,-460.0,0.00021915,2]
[376642817,1754069444748,-824.68,0.00021915,2]
[376642818,1754069444756,-460.0,0.00021915,2]
[376642819,1754069444766,-576.62,0.00021915,2]
[376642820,1754069444775,-460.0,0.00021915,2]
[376642821,1754069444785,-270.0843067,0.00021915,2]
[376642822,1754069444795,-460.0,0.00021915,2]
[376642823,1754069444807,-242.55227926,0.00021915,2]
[376642824,1754069444817,-460.0,0.00021915,2]
[376642825,1754069444826,-460.0,0.00021915,2]
[376642826,1754069444836,-460.0,0.00021915,2]
[376642827,1754069444845,-584.83,0.00021915,2]
[376642828,1754069444855,-342.08229717,0.00021915,2]
[376642829,1754069444865,-2037.08,0.00021915,2]
[376642830,1754069444875,-460.0,0.00021915,2]
[376642831,1754069444885,-460.0,0.00021915,2]
[376642832,1754069444894,-623.77,0.00021915,2]
[376642833,1754069444904,-460.0,0.00021915,2]
[376642834,1754069444914,-460.0,0.00021915,2]
[376642835,1754069444924,-460.0,0.00021915,2]
[376642848,1754069445071,-460.0,0.00021916,2]
[376642851,1754069445109,-460.0,0.00021916,2]
[376642853,1754069445120,-460.0,0.00021916,2]
[376642855,1754069445129,-460.85875591,0.00021916,2]
[376642858,1754069445138,-460.0,0.00021916,2]
[376642861,1754069445147,-206.75568767,0.00021916,2]
[376642863,1754069445156,-308.58603628,0.00021916,2]
[376642865,1754069445167,-460.0,0.00021916,2]
[376642867,1754069445176,-461.19878474,0.00021916,2]
[376642869,1754069445186,-460.0,0.00021916,2]
[376642871,1754069445197,-460.0,0.00021916,2]
[376642873,1754069445207,-460.0,0.00021916,2]
[376642876,1754069445221,-460.0,0.00021916,2]
[376642879,1754069445231,-460.0,0.00021916,2]
[376642881,1754069445242,-460.0,0.00021916,2]
[376642883,1754069445252,-460.0,0.00021916,2]
[376642885,1754069445262,-572.15,0.00021916,2]
[376642887,1754069445272,-460.0,0.00021916,2]
[376642889,1754069445281,-558.46,0.00021916,2]
[376642891,1754069445290,-460.0,0.00021916,2]
[376642893,1754069445299,-460.0,0.00021916,2]
[376642894,1754069445308,-470.41,0.00021916,2]
[376642896,1754069445317,-460.0,0.00021916,2]
[376642898,1754069445327,-522.15,0.00021916,2]
[376642900,1754069445335,-216.34477422,0.00021916,2]
[376642902,1754069445345,-500.0,0.00021916,2]
[376642904,1754069445354,-403.71795878,0.00021916,2]
[376642906,1754069445363,-3584.18,0.00021916,2]
[376642908,1754069445372,-460.0,0.00021916,2]
[376642910,1754069445383,-460.0,0.00021916,2]
[376642912,1754069445392,-460.0,0.00021916,2]
[376642914,1754069445400,-460.0,0.00021916,2]
[376642916,1754069445410,-264.99684139,0.00021916,2]
[376642918,1754069445419,-460.0,0.00021916,2]
[376642920,1754069445428,-460.0,0.00021916,2]
[376642922,1754069445437,-3955.69,0.00021916,2]
[376642924,1754069445447,-460.0,0.00021916,2]
[376642926,1754069445456,-151.18727,0.00021916,2]
[376642928,1754069445468,-151.0,0.00021916,2]
[376642930,1754069445478,-460.0,0.00021916,2]
[376642932,1754069445488,-554.16,0.00021916,2]
[376642934,1754069445497,-460.0,0.00021916,2]
[376642936,1754069445506,-151.0,0.00021916,2]
[376642938,1754069445515,-291.3638,0.00021916,2]
[376642940,1754069445524,-460.0,0.00021916,2]
[376642942,1754069445533,-363.09740507,0.00021916,2]
[376642944,1754069445543,-460.0,0.00021916,2]
[376642946,1754069445552,-460.0,0.00021916,2]
[376642948,1754069445561,-747.38,0.00021916,2]
[376642950,1754069445570,-460.0,0.00021916,2]
[376642952,1754069445579,-1190.84,0.00021916,2]
[376642954,1754069445588,-460.0,0.00021916,2]
[376642956,1754069445598,-1234.91,0.00021916,2]
[376642957,1754069445606,-151.0,0.00021916,2]
[376642958,1754069445616,-574.19,0.00021916,2]
[376642959,1754069445625,-2698.82,0.00021916,2]
[376642960,1754069445636,-151.0,0.00021916,2]
[376642962,1754069445645,-460.0,0.00021916,2]
[376642964,1754069445654,-8054.32,0.00021916,2]
[376642965,1754069445663,-151.0,0.00021916,2]
[376642967,1754069445673,-529.07,0.00021916,2]
[376642969,1754069445682,-156.89852,0.00021916,2]
[376642971,1754069445691,-460.0,0.00021916,2]
[376642973,1754069445700,-460.0,0.00021916,2]
[376642974,1754069445716,-151.0,0.00021916,2]
[376642975,1754069445726,-460.0,0.00021916,2]
[376642976,1754069445736,-1354.33,0.00021916,2]
[376642979,1754069445746,-4626.0,0.00021916,2]
[376642981,1754069445755,-460.0,0.00021916,2]
[376642982,1754069445765,-151.0,0.00021916,2]
[376642984,1754069445774,-312.30644726,0.00021917,2]
[376642986,1754069445783,-294.55268035,0.00021917,10]
[376642987,1754069445793,-160.0,0.00021917,10]
[376642988,1754069445802,-151.0,0.00021917,2]
[376642989,1754069445812,-151.0,0.00021917,2]
[376642990,1754069445822,-151.0,0.00021917,2]
[376642991,1754069445832,-151.0,0.00021917,2]
[376642992,1754069445842,-151.0,0.00021917,2]
[376642993,1754069445851,-151.0,0.00021917,2]
[376642994,1754069445861,-151.0,0.00021917,2]
[376642995,1754069445870,-151.0,0.00021917,2]
[376642996,1754069445880,-151.0,0.00021917,2]
[376642997,1754069445891,-151.0,0.00021917,2]
[376642998,1754069445901,-151.0,0.00021917,2]
[376642999,1754069445911,-151.0,0.00021917,2]
[376643000,1754069445920,-151.0,0.00021917,2]
[376643001,1754069445934,-151.0,0.00021917,2]
[376643002,1754069445948,-151.0,0.00021917,2]
[376643003,1754069445957,-151.0,0.00021917,2]
[376643004,1754069445969,-151.0,0.00021917,2]
[376643005,1754069445979,-169.318269,0.00021917,2]
[376643006,1754069445989,-460.0,0.00021917,10]
[376643007,1754069446004,-460.0,0.00021917,10]
[376643008,1754069446019,-460.0,0.00021917,10]
[376643009,1754069446029,-460.0,0.00021917,10]
[376643010,1754069446039,-461.20108533,0.00021917,10]
[376643011,1754069446048,-460.0,0.00021917,10]
[376643012,1754069446058,-460.0,0.00021917,10]
[376643013,1754069446067,-460.0,0.00021917,10]
[376643014,1754069446077,-460.0,0.00021917,10]
[376643015,1754069446087,-424.042947,0.00021917,2]
[376643016,1754069446097,-424.042947,0.00021917,2]
[376643017,1754069446107,-424.042947,0.00021917,2]
[376643018,1754069446116,-424.042947,0.00021917,2]
[376643019,1754069446125,-424.042947,0.00021917,2]
[376643020,1754069446135,-740.85,0.00021917,10]
[376643021,1754069446144,-460.0,0.00021917,10]
[376643022,1754069446153,-424.042947,0.00021917,2]
[376643023,1754069446163,-424.042947,0.00021917,2]
[376643024,1754069446173,-424.042947,0.00021917,2]
[376643025,1754069446182,-424.042947,0.00021917,2]
[376643026,1754069446192,-424.042947,0.00021917,2]
[376643027,1754069446202,-460.0,0.00021917,10]
[376643028,1754069446215,-460.0,0.00021917,10]
[376643029,1754069446225,-460.0,0.00021917,10]
[376643030,1754069446234,-460.0,0.00021917,10]
[376643031,1754069446244,-460.0,0.00021917,10]
[376643032,1754069446254,-460.0,0.00021917,10]
[376643033,1754069446264,-460.0,0.00021917,10]
[376643034,1754069446273,-460.0,0.00021917,10]
[376643035,1754069446283,-452.65945018,0.00021917,10]
[376643036,1754069446292,-460.0,0.00021917,10]
[376643037,1754069446302,-363.33624991,0.00021917,10]
[376643038,1754069446312,-460.0,0.00021917,10]
[376643039,1754069446322,-461.10723941,0.00021917,7]
[376643040,1754069446331,-460.0,0.00021917,10]
[376643041,1754069446340,-460.0,0.00021917,10]
[376643042,1754069446349,-151.0,0.00021917,2]
[376643043,1754069446359,-151.0,0.00021917,2]
[376643044,1754069446369,-151.0,0.00021917,2]
[376643045,1754069446378,-151.0,0.00021917,2]
[376643046,1754069446387,-151.0,0.00021917,2]
[376643047,1754069446396,-215.03686253,0.00021917,10]
[376643048,1754069446406,-500.0,0.00021917,2]
[376643049,1754069446415,-151.0,0.00021917,2]
[376643050,1754069446424,-210.130738,0.00021917,2]
[376643051,1754069446434,-151.0,0.00021917,2]
[376643052,1754069446443,-151.0,0.00021917,2]
[376643053,1754069446453,-151.0,0.00021917,2]
[376643054,1754069446466,-589.983051,0.00021917,2]
[376643055,1754069446475,-589.983051,0.00021917,2]
[376643056,1754069446485,-151.0,0.00021917,2]
[376643057,1754069446494,-151.0,0.00021917,2]
[376643058,1754069446503,-189.951061,0.00021917,2]
[376643059,1754069446513,-312.16666667,0.00021917,10]
[376643060,1754069446522,-500.0,0.00021973,2]
[376643061,1754069446531,-500.0,0.00021973,2]
[376643062,1754069446541,-500.0,0.00021973,2]
[376643063,1754069446550,-150.0,0.00021973,2]
[376643064,1754069446559,-462.13637724,0.00021973,2]
[376643065,1754069446569,-500.0,0.00021973,2]
[376643066,1754069446578,-221.34541957,0.00021973,2]
[376643067,1754069446587,-238.18277394,0.00021973,2]
[376643068,1754069446597,-408.46078182,0.00022084,2]
[376643069,1754069446606,-460.0,0.00022088,2]
[376643070,1754069446616,-561.33,0.00022088,2]
[376643071,1754069446626,-472.51900108,0.00022088,2]
[376643072,1754069446638,-460.0,0.00022089,2]
[376643073,1754069446648,-7885.76,0.00022089,2]
[376643074,1754069446658,-1256.44,0.00022089,2]
[376643075,1754069446667,-483.69,0.00022089,2]
[376643076,1754069446678,-460.0,0.00022089,2]
[376643077,1754069446687,-5790.7,0.00022089,2]
[376643078,1754069446697,-460.0,0.00022089,2]
[376643079,1754069446706,-460.0,0.00022089,2]
[376643080,1754069446722,-986.92,0.00022089,2]
[376643081,1754069446731,-976.82,0.00022089,2]
[376643082,1754069446741,-474.25,0.00022089,2]
[376643083,1754069446750,-1013.68,0.00022089,2]
[376643084,1754069446760,-3993.69,0.00022089,2]
[376643085,1754069446769,-1218.29,0.00022089,2]
[376643086,1754069446779,-151.0,0.00022089,7]
[376643087,1754069446788,-562.37,0.00022089,2]
[376643088,1754069446797,-3161.08,0.00022089,2]
[376643089,1754069446807,-1133.95,0.00022089,2]
[376643090,1754069446816,-460.0,0.00022089,2]
[376643091,1754069446825,-460.0,0.00022089,2]
[376643092,1754069446835,-460.0,0.00022089,2]
[376643093,1754069446846,-2061.59,0.00022089,2]
[376643094,1754069446856,-460.0,0.00022089,2]
[376643095,1754069446866,-151.0,0.00022089,7]
[376643096,1754069446876,-1639.19005191,0.0002209,2]
[376643097,1754069446886,-486.92105167,0.0002209,2]
[376643098,1754069446895,-460.0,0.0002209,2]